bitfinex/quotes_SOLUSD_20241028
["timestamp","ask_amount","ask_price","bid_price","bid_amount"]
[1730152778082,5.6258,177.75,177.71,0.1]
[1730152778286,16.5879299,177.75,177.72,0.1]
[1730152778782,5.6258,177.75,177.72,0.1]
[1730152779292,16.5879299,177.75,177.72,0.1]
[1730152780868,16.5879299,177.75,177.73,0.1]
[1730152780869,5.6258,177.75,177.73,0.1]
[1730152782070,5.6258,177.75,177.71,0.1]
[1730152782274,5.6258,177.75,177.73,0.1]
[1730152784293,10.9621299,177.77,177.74,0.1]
[1730152784674,5.6255,177.76,177.72,0.1]
[1730152785187,5.6255,177.76,177.74,0.1]
[1730152787194,10.9621299,177.76,177.74,0.1]
[1730152787591,10.9621299,177.76,177.72,0.1]
[1730152788088,10.9621299,177.76,177.74,0.1]
[1730152788467,5.6249,177.78,177.74,0.1]
[1730152788691,5.6258,177.75,177.74,0.1]
[1730152788988,16.5879299,177.75,177.73,0.1]
[1730152789185,5.6258,177.75,177.72,0.1]
[1730152789393,5.6258,177.75,177.73,0.1]
[1730152789603,5.6258,177.75,177.72,0.1]
[1730152789815,16.5879299,177.75,177.73,0.1]
[1730152793709,10.9621299,177.76,177.73,0.1]
[1730152794002,10.9621299,177.75,177.72,0.1]
[1730152795005,5.6261,177.74,177.73,0.1]
[1730152795182,23.776884,177.79,177.72,0.1]
[1730152795387,10.9621299,177.76,177.73,0.1]
[1730152795802,10.9621299,177.76,177.72,0.1]
[1730152796104,10.9621299,177.76,177.73,0.1]
[1730152797307,5.6258,177.75,177.72,0.1]
[1730152797810,16.5879299,177.75,177.72,0.1]
[1730152798105,16.5879299,177.75,177.73,0.1]
[1730152798311,5.6258,177.75,177.73,0.1]
[1730152798479,16.5879299,177.75,177.73,0.1]
[1730152799593,16.5879299,177.75,177.72,0.1]
[1730152799814,10.9621299,177.76,177.73,0.1]
[1730152800008,5.6255,177.76,177.73,0.1]
[1730152800212,16.5876299,177.76,177.72,0.1]
[1730152800385,16.5876299,177.76,177.73,0.1]
[1730152800586,5.6255,177.76,177.73,0.1]
[1730152800799,16.5876299,177.76,177.73,0.1]
[1730152801114,5.6255,177.76,177.73,0.1]
[1730152801312,26.9736299,177.8,177.76,0.1]
[1730152801519,5.6246,177.79,177.76,0.1]
[1730152801681,5.6246,177.79,177.77,0.1]
[1730152802021,5.6233,177.83,177.76,0.1]
[1730152802184,16.5854299,177.83,177.8,0.1]
[1730152802388,5.6233,177.83,177.8,0.1]
[1730152802586,16.5854299,177.83,177.8,0.1]
[1730152802809,13.1683384,177.85,177.81,0.1]
[1730152803025,13.1683384,177.85,177.74,6.3424]
[1730152803026,18.7913384,177.85,177.83,0.1]
[1730152803507,13.28523285,177.85,177.83,0.1]
[1730152803709,5.623,177.85,177.83,0.1]
[1730152803894,5.622,177.87,177.83,0.1]
[1730152804103,16.5841299,177.87,177.84,0.1]
[1730152804300,5.622,177.87,177.84,0.1]
[1730152804494,16.5841299,177.87,177.84,0.1]
[1730152805805,5.6211,177.9,177.85,0.1]
[1730152806004,10.9621299,177.86,177.85,0.1]
[1730152806403,10.9621299,177.89,177.87,0.1]
[1730152806988,16.5832299,177.9,177.88,0.1]
[1730152807199,5.6211,177.9,177.88,0.1]
[1730152807410,10.9621299,177.89,177.88,0.1]
[1730152809193,5.59634905,177.94,177.88,0.1]
[1730152809394,10.9621299,177.9,177.89,0.1]
[1730152809621,10.9621299,177.91,177.89,0.1]
[1730152809918,10.9621299,177.91,177.9,0.1]
[1730152810616,5.6201,177.93,177.9,0.1]
[1730152810806,10.9621299,177.91,177.9,0.1]
[1730152811921,5.6207,177.92,177.85,16.5845299]
[1730152811922,5.6207,177.92,177.91,0.1]
[1730152812119,16.5828299,177.92,177.91,0.1]
[1730152813718,16.5828299,177.92,177.89,0.1]
[1730152813916,5.6201,177.93,177.91,0.1]
[1730152814112,10.9621299,177.92,177.91,0.1]
[1730152815031,16.5827299,177.92,177.9,0.1]
[1730152815320,10.9621299,177.91,177.9,0.1]
[1730152816215,10.9621299,177.91,177.88,0.1]
[1730152816418,10.9621299,177.89,177.87,0.1]
[1730152816598,10.9621299,177.88,177.87,0.1]
[1730152822423,16.2757,177.93,177.88,0.1]
[1730152822626,10.9621299,177.9,177.89,0.1]
[1730152823127,10.9621299,177.9,177.88,0.1]
[1730152823340,10.9621299,177.9,177.89,0.1]
[1730152823702,10.9621299,177.9,177.88,0.1]
[1730152823897,10.9621299,177.9,177.89,0.1]
[1730152828127,16.5832299,177.9,177.88,0.1]
[1730152828314,10.9621299,177.89,177.87,0.1]
[1730152828510,10.9621299,177.88,177.87,0.1]
[1730152829121,16.5838299,177.88,177.87,0.1]
[1730152832614,16.5838299,177.88,177.86,0.1]
[1730152832821,10.9621299,177.88,177.87,0.1]
[1730152834127,5.6208,177.91,177.87,0.2]
[1730152834315,10.9621299,177.9,177.89,0.1]
[1730152834840,0.0902435,177.94,177.93,0.1]
[1730152835435,11.0523734,177.94,177.93,0.1]
[1730152835611,16.6721734,177.94,177.93,0.1]
[1730152835811,11.0523734,177.94,177.92,0.1]
[1730152836015,5.7100435,177.94,177.92,0.1]
[1730152836233,10.9621299,177.93,177.91,0.1]
[1730152836529,10.9621299,177.92,177.89,0.1]
[1730152836713,5.7100435,177.94,177.91,0.1]
[1730152836910,10.9621299,177.92,177.91,0.1]
[1730152837835,11.0523734,177.94,177.93,0.1]
[1730152838056,0.0902435,177.94,177.93,0.1]
[1730152838339,11.0523734,177.94,177.93,0.1]
[1730152838730,0.0902435,177.94,177.93,0.2]
[1730152838916,0.0902435,177.94,177.93,11.1621299]
[1730152839124,0.0902435,177.94,177.93,0.2]
[1730152839421,0.0902435,177.94,177.93,11.1621299]
[1730152839930,0.0902435,177.94,177.93,0.2]
[1730152840236,0.0902435,177.94,177.93,11.1621299]
[1730152840427,0.0902435,177.94,177.93,98.7875335]
[1730152840828,5.6164,178.05,178.02,0.1]
[1730152841020,15.0757,178.1,178.03,0.2]
[1730152841021,10.9621299,178.04,178.03,0.2]
[1730152841223,70.0,178.06,177.96,0.2]
[1730152841536,5.6165,178.05,178.02,0.1]
[1730152841728,5.6165,178.05,178.02,0.2]
[1730152841916,112.37092653,178.1,178.02,0.2]
[1730152841917,5.6151,178.09,178.03,0.1]
[1730152842119,5.6151,178.09,178.02,0.2]
[1730152842326,10.9621299,178.03,178.02,0.2]
[1730152844022,10.9621299,178.03,178.02,0.1]
[1730152844425,10.9621299,178.03,178.02,0.2]
[1730152844721,10.9621299,178.03,178.02,0.1]
[1730152844928,5.6164,178.05,178.02,0.1]
[1730152845139,10.9621299,178.03,178.02,0.2]
[1730152846344,16.5793299,178.03,178.0,0.2]
[1730152846531,10.9621299,178.01,177.99,0.1]
[1730152846724,10.9621299,178.0,177.96,0.2]
[1730152846925,10.9621299,177.97,177.96,0.2]
[1730152847332,10.9621299,177.97,177.96,0.1]
[1730152848144,5.6172,178.03,178.02,0.1]
[1730152848438,5.6163,178.05,178.01,0.1]
[1730152848640,5.6163,178.05,178.02,0.1]
[1730152848845,10.9621299,178.03,178.02,0.1]
[1730152849048,10.9621299,178.03,178.0,0.1]
[1730152849216,10.9621299,178.01,178.0,0.2]
[1730152849927,5.6175,178.02,178.01,0.1]
[1730152850131,16.5796299,178.02,178.0,0.2]
[1730152850548,16.5796299,178.02,178.01,0.1]
[1730152850839,70.0,178.06,178.0,0.1]
[1730152850840,23.776884,178.04,178.0,0.2]
[1730152851045,23.776884,178.04,178.01,0.1]
[1730152851541,23.776884,178.04,178.0,0.1]
[1730152851542,5.6163,178.05,178.0,0.1]
[1730152851729,23.776884,178.03,178.0,0.1]
[1730152851925,23.776884,178.03,177.99,0.1]
[1730152852340,43.8485196,178.02,178.0,0.2]
[1730152852640,23.776884,178.03,178.01,0.1]
[1730152853341,5.6173,178.02,178.0,0.1]
[1730152853516,10.9621299,178.01,178.0,0.1]
[1730152855220,5.6179,178.0,177.98,0.1]
[1730152855542,10.9621299,177.99,177.98,0.1]
[1730152856555,16.5803299,177.99,177.98,0.2]
[1730152856732,10.9621299,177.99,177.98,0.2]
[1730152859937,10.9621299,177.99,177.98,0.1]
[1730152860145,16.5803299,177.99,177.98,0.1]
[1730152860559,16.5803299,177.99,177.98,0.2]
[1730152861047,16.5803299,177.99,177.98,0.1]
[1730152861250,16.5803299,177.99,177.98,0.2]
[1730152861742,5.6173,178.02,178.0,0.1]
[1730152862427,5.6173,178.02,177.99,0.1]
[1730152862627,10.9621299,178.0,177.99,0.2]
[1730152863251,16.5800299,178.0,177.99,0.2]
[1730152863746,10.9621299,178.0,177.99,0.2]
[1730152864752,14.0393,178.08,177.99,0.2]
[1730152864753,85.96,178.07,177.99,0.2]
[1730152865046,5.6148,178.1,178.05,0.1]
[1730152865241,70.0,178.09,178.05,0.1]
[1730152865634,70.0,178.09,178.06,0.1]
[1730152865837,5.6148,178.1,178.08,0.1]
[1730152866039,10.9621299,178.09,178.08,0.1]
[1730152866628,10.9621299,178.09,178.07,0.1]
[1730152866840,10.9621299,178.08,178.07,0.1]
[1730152867150,10.9621299,178.08,178.05,0.1]
[1730152867347,10.9621299,178.08,178.06,0.2]
[1730152867532,10.9621299,178.08,178.06,0.1]
[1730152867737,10.9621299,178.07,178.06,0.1]
[1730152867928,10.9621299,178.07,178.04,0.2]
[1730152868129,23.776884,178.08,178.05,0.2]
[1730152869269,10.9621299,178.06,178.03,0.2]
[1730152869556,10.9621299,178.04,178.03,0.1]
[1730152870241,10.9621299,178.04,178.03,0.2]
[1730152870435,16.5788299,178.04,178.03,0.2]
[1730152871060,5.6167,178.04,178.03,0.2]
[1730152871235,16.5788299,178.04,178.03,0.2]
[1730152871431,16.5788299,178.04,178.03,0.1]
[1730152871758,16.5788299,178.04,178.03,0.2]
[1730152873059,25.6151,178.09,178.06,0.1]
[1730152873232,10.9621299,178.07,178.06,0.2]
[1730152873947,10.9621299,178.07,178.06,0.1]
[1730152874145,10.9621299,178.07,178.06,0.2]
[1730152874447,60.4662196,178.11,178.08,0.1]
[1730152874659,10.9621299,178.09,178.08,0.1]
[1730152875955,16.5772299,178.09,178.08,0.1]
[1730152876533,23.776884,178.08,178.05,0.2]
[1730152876842,23.776884,178.08,178.05,0.1]
[1730152877046,23.776884,178.08,178.06,0.1]
[1730152877238,23.776884,178.08,178.06,0.2]
[1730152877871,29.392584,178.07,178.06,0.1]
[1730152878040,40.3547139,178.07,178.06,0.2]
[1730152878559,40.3547139,178.07,178.06,0.1]
[1730152880150,23.776884,178.06,178.05,0.2]
[1730152880458,34.7390139,178.06,178.05,0.2]
[1730152881736,5.6145,178.11,178.1,0.1]
[1730152881958,16.5766299,178.11,178.1,0.2]
[1730152882157,5.6145,178.11,178.1,0.2]
[1730152882360,16.5766299,178.11,178.1,0.2]
[1730152883037,40.3535139,178.11,178.1,0.2]
[1730152883859,40.3535139,178.11,178.1,0.1]
[1730152884163,40.3535139,178.11,178.1,0.2]
[1730152885567,23.776884,178.1,178.08,0.1]
[1730152885754,34.7390139,178.09,178.08,0.1]
[1730152886263,23.776884,178.09,178.08,0.2]
[1730152886469,34.7390139,178.09,178.08,0.2]
[1730152886851,29.391984,178.09,178.08,0.2]
[1730152887051,40.3541139,178.09,178.08,0.2]
[1730152887865,29.391984,178.09,178.08,0.1]
[1730152888043,40.3541139,178.09,178.08,0.2]
[1730152888563,40.3541139,178.09,178.08,0.1]
[1730152888758,23.776884,178.08,178.07,0.2]
[1730152888953,34.7390139,178.08,178.07,0.2]
[1730152889658,40.3544139,178.08,178.07,0.2]
[1730152890872,23.776884,178.08,178.07,0.2]
[1730152891165,34.7390139,178.08,178.07,0.2]
[1730152891465,40.3544139,178.08,178.07,0.2]
[1730152893057,40.3544139,178.08,178.06,0.2]
[1730152893260,34.7390139,178.07,178.06,0.1]
[1730152894153,34.7390139,178.07,178.06,0.2]
[1730152894467,34.7390139,178.07,178.06,0.1]
[1730152894664,34.7390139,178.07,178.06,0.2]
[1730152894856,34.7390139,178.07,178.06,0.1]
[1730152895465,40.3547139,178.07,178.06,0.2]
[1730152895845,29.392584,178.07,178.06,0.2]
[1730152896047,70.0,178.05,178.01,0.1]
[1730152896255,34.7390139,178.02,178.01,0.1]
[1730152896464,20.8481,178.07,178.04,0.1]
[1730152896769,23.776884,178.06,178.05,0.2]
[1730152897154,23.776884,178.06,178.05,0.1]
[1730152897451,6.2043435,178.12,178.11,0.2]
[1730152897667,6.2043435,178.12,178.11,0.1]
[1730152898166,16.6664734,178.12,178.11,0.2]
[1730152898367,16.6664734,178.12,178.11,0.1]
[1730152898561,60.514993,178.12,178.11,0.1]
[1730152898950,84.291877,178.12,178.11,0.1]
[1730152899453,40.4433574,178.12,178.11,0.2]
[1730152899658,84.291877,178.12,178.11,0.1]
[1730152902669,84.291877,178.12,178.11,0.2]
[1730152902970,84.291877,178.12,178.11,0.1]
[1730152904382,84.291877,178.12,178.09,0.1]
[1730152904383,84.291877,178.12,178.1,0.1]
[1730152904676,78.5875335,178.11,178.1,0.2]
[1730152904857,78.5875335,178.11,178.1,0.1]
[1730152905055,0.0902435,178.12,178.11,0.2]
[1730152905254,11.0523734,178.12,178.11,0.2]
[1730152905777,11.0523734,178.12,178.11,0.1]
[1730152906153,0.0902435,178.12,178.11,0.1]
[1730152906361,0.0902435,178.12,178.11,0.2]
[1730152906362,11.0523734,178.12,178.11,0.2]
[1730152906561,40.4433574,178.12,178.11,0.2]
[1730152907376,16.6664734,178.12,178.11,0.2]
[1730152907678,40.4433574,178.12,178.11,0.2]
[1730152908170,40.4433574,178.12,178.11,0.1]
[1730152908377,40.4433574,178.12,178.11,0.2]
[1730152909278,40.4433574,178.12,178.11,0.1]
[1730152909659,40.4433574,178.12,178.11,0.2]
[1730152910159,60.4433574,178.12,178.11,0.2]
[1730152910368,60.4433574,178.12,178.11,0.1]
[1730152910669,60.4433574,178.12,178.11,0.2]
[1730152913178,60.4433574,178.12,178.11,0.1]
[1730152913564,104.291877,178.12,178.11,0.1]
[1730152914578,43.776884,178.11,178.1,0.1]
[1730152914767,98.5875335,178.11,178.1,0.1]
[1730152915593,104.2020335,178.11,178.1,0.1]
[1730152916487,60.3535139,178.11,178.1,0.1]
[1730152917064,60.3535139,178.11,178.1,0.2]
[1730152920567,60.3535139,178.11,178.1,0.1]
[1730152920888,60.3535139,178.11,178.1,0.2]
[1730152921086,104.2020335,178.11,178.1,0.1]
[1730152924365,60.3544139,178.08,178.07,0.2]
[1730152924568,60.3544139,178.08,178.07,0.1]
[1730152925274,60.3544139,178.08,178.04,0.1]
[1730152925275,43.776884,178.07,178.06,0.1]
[1730152925590,54.7390139,178.07,178.06,0.1]
[1730152925787,54.7390139,178.07,178.04,0.1]
[1730152925788,43.776884,178.05,178.04,0.1]
[1730152925994,43.776884,178.05,178.03,0.1]
[1730152926165,54.7390139,178.04,178.03,0.1]
[1730152926593,60.3557139,178.04,178.03,0.1]
[1730152926890,20.0,178.03,178.02,0.1]
[1730152927071,54.7390139,178.03,178.02,0.1]
[1730152927268,23.776884,178.02,178.01,0.2]
[1730152927463,23.776884,178.02,177.96,6.6662]
[1730152927464,29.392984,178.06,178.05,0.1]
[1730152927686,60.3551139,178.06,178.05,0.1]
[1730152928281,60.3551139,178.06,178.04,0.2]
[1730152928486,49.392984,178.06,178.05,0.1]
[1730152928680,49.392984,178.06,178.04,0.2]
[1730152928870,49.392984,178.06,178.05,0.1]
[1730152929271,60.3551139,178.06,178.05,0.1]
[1730152930106,43.776884,178.01,178.0,0.1]
[1730152930277,54.7390139,178.01,178.0,0.1]
[1730152930769,54.7390139,178.01,177.98,0.1]
[1730152930975,34.7390139,177.99,177.96,0.1]
[1730152931180,23.776884,177.98,177.97,0.2]
[1730152931772,34.7390139,177.98,177.97,0.1]
[1730152931971,34.7390139,177.98,177.97,0.2]
[1730152932496,110.3576139,177.98,177.93,0.1]
[1730152932672,99.395484,177.98,177.95,0.1]
[1730152932873,34.7390139,177.96,177.95,0.1]
[1730152933272,40.3582139,177.96,177.95,0.1]
[1730152933777,40.3579139,177.97,177.96,0.2]
[1730152934399,34.7390139,177.97,177.96,0.2]
[1730152934701,34.7390139,177.97,177.96,0.1]
[1730152934881,34.7390139,177.97,177.96,0.2]
[1730152935496,29.394784,178.0,177.96,0.1]
[1730152935805,10.9621299,177.98,177.97,0.1]
[1730152936098,10.9621299,177.98,177.97,0.2]
[1730152936296,10.9621299,177.98,177.97,0.1]
[1730152936481,10.9621299,177.98,177.97,0.2]
[1730152936872,10.9621299,177.98,177.97,0.1]
[1730152937084,34.7390139,177.98,177.96,0.1]
[1730152937306,34.7390139,177.97,177.96,0.1]
[1730152937596,40.3579139,177.97,177.96,0.2]
[1730152938191,40.3579139,177.97,177.96,0.1]
[1730152938387,70.0,178.04,177.96,0.2]
[1730152938605,10.9621299,178.02,178.01,0.2]
[1730152939505,16.5794299,178.02,178.01,0.2]
[1730152940904,40.3563139,178.02,178.01,0.2]
[1730152941284,40.3563139,178.02,178.0,0.2]
[1730152941285,23.776884,178.01,178.0,0.2]
[1730152941496,40.3566139,178.01,177.99,0.1]
[1730152941686,29.394484,178.01,178.0,0.1]
[1730152942886,40.3566139,178.01,177.98,0.2]
[1730152943089,10.9621299,177.99,177.98,0.2]
[1730152943798,16.5417,178.05,178.04,0.1]
[1730152944112,33.1204299,178.05,178.04,0.1]
[1730152945210,34.7390139,178.05,178.04,0.2]
[1730152945508,10.9621299,178.05,178.04,0.2]
[1730152945714,5.6161,178.06,178.04,0.2]
[1730152945905,10.9621299,178.05,178.04,0.2]
[1730152947112,34.7390139,178.05,178.04,0.2]
[1730152947311,23.776884,178.05,178.04,0.2]
[1730152947606,34.7390139,178.05,178.04,0.1]
[1730152947816,34.7390139,178.05,178.04,0.2]
[1730152948607,40.3553139,178.05,178.04,0.2]
[1730152949099,15.7221,178.1,177.99,5.6179]
[1730152949100,70.0,178.1,178.08,0.2]
[1730152949302,10.9621299,178.09,178.08,0.2]
[1730152949687,10.9621299,178.09,178.08,0.1]
[1730152950201,10.9621299,178.09,178.07,0.2]
[1730152950399,104.7390139,178.08,178.06,0.2]
[1730152950605,34.7390139,178.07,178.06,0.2]
[1730152951415,34.7390139,178.07,178.06,0.1]
[1730152951784,34.7390139,178.07,178.05,0.1]
[1730152952016,10.9621299,178.06,178.05,0.1]
[1730152952194,23.776884,178.05,178.04,0.2]
[1730152952696,60.3555139,178.05,178.04,0.1]
[1730152953010,23.776884,178.03,178.02,0.2]
[1730152953216,34.7390139,178.03,178.02,0.1]
[1730152953601,54.7390139,178.03,178.02,0.2]
[1730152954686,54.7390139,178.03,178.02,0.1]
[1730152954925,60.3560139,178.03,178.02,0.1]
[1730152955418,130.3560139,178.03,178.02,0.1]
[1730152955803,49.394184,178.02,178.01,0.1]
[1730152956005,60.3563139,178.02,178.01,0.2]
[1730152956603,104.2048335,178.02,178.01,0.2]
[1730152957313,20.0,178.0,177.97,0.1]
[1730152957517,54.7390139,177.98,177.97,0.2]
[1730152958925,34.7390139,177.98,177.97,0.2]
[1730152959093,5.6176,178.01,177.97,0.2]
[1730152959296,70.0,178.03,178.01,0.2]
[1730152959617,5.6173,178.02,178.01,0.2]
[1730152960509,49.394184,178.02,178.01,0.2]
[1730152961024,54.7390139,178.02,178.01,0.2]
[1730152961517,60.3563139,178.02,178.01,0.1]
[1730152961814,60.3563139,178.02,178.01,0.2]
[1730152962403,60.3563139,178.02,178.0,0.2]
[1730152962724,54.7390139,178.01,178.0,0.2]
[1730152963222,60.3566139,178.01,178.0,0.2]
[1730152964312,60.3566139,178.01,178.0,0.1]
[1730152964512,60.3566139,178.01,178.0,0.2]
[1730152964700,60.3566139,178.01,178.0,0.1]
[1730152965108,60.3566139,178.01,178.0,0.2]
[1730152965421,60.3566139,178.01,177.98,0.1]
[1730152965625,23.776884,177.96,177.94,0.1]
[1730152965818,34.7390139,177.95,177.94,0.2]
[1730152966014,33.7824139,177.95,177.94,0.2]
[1730152966195,34.7390139,177.95,177.94,0.2]
[1730152969126,10.9621299,177.95,177.94,0.2]
[1730152969325,34.7390139,177.96,177.95,0.2]
[1730152969626,75.6176,178.01,178.0,0.1]
[1730152969803,86.5797299,178.01,178.0,0.1]
[1730152971230,106.5797299,178.01,178.0,0.1]
[1730152971826,130.3566139,178.01,178.0,0.1]
[1730152976108,34.7390139,178.01,178.0,0.2]
[1730152976529,40.3566139,178.01,178.0,0.2]
[1730152976835,110.3566139,178.01,178.0,0.1]
[1730152977515,119.394484,178.01,178.0,0.1]
[1730152977716,130.3566139,178.01,178.0,0.1]
[1730152979909,130.3566139,178.01,177.97,0.1]
[1730152979910,43.776884,178.0,177.97,0.1]
[1730152980109,10.9621299,177.98,177.97,0.1]
[1730152980413,130.3576139,177.98,177.96,0.2]
[1730152980637,34.7390139,177.97,177.96,0.2]
[1730152981739,40.3579139,177.97,177.96,0.2]
[1730152988034,34.7390139,177.97,177.96,0.2]
[1730152988618,10.9621299,177.97,177.96,0.2]
[1730152989443,10.9621299,178.0,177.99,0.1]
[1730152990917,40.3569139,178.0,177.99,0.1]
[1730152991312,40.3569139,178.0,177.92,11.0621299]
[1730152991313,43.776884,177.92,177.91,0.2]
[1730152991536,54.7390139,177.92,177.91,0.2]
[1730152992329,34.7390139,177.92,177.91,0.2]
[1730152992521,54.7390139,177.92,177.91,0.2]
[1730152993124,60.3595139,177.92,177.91,0.2]
[1730152994321,34.7390139,177.92,177.91,0.2]
[1730152995036,60.3595139,177.92,177.91,0.1]
[1730152995243,43.776884,177.91,177.9,0.1]
[1730152995539,54.7390139,177.91,177.9,0.1]
[1730152996040,54.7390139,177.91,177.9,0.2]
[1730152996246,60.3598139,177.91,177.9,0.2]
[1730152996823,34.7390139,177.91,177.9,0.2]
[1730152998825,60.3598139,177.91,177.9,0.1]
[1730152999151,60.3598139,177.91,177.9,0.2]
[1730152999340,60.3598139,177.91,177.9,0.1]
[1730152999532,60.3598139,177.91,177.9,0.2]
[1730153000443,60.3598139,177.91,177.9,0.1]
[1730153000625,60.3598139,177.91,177.9,0.2]
[1730153000825,60.3598139,177.91,177.9,0.1]
[1730153001125,5.6189,177.97,177.95,0.1]
[1730153001333,80.9621299,177.96,177.94,0.1]
[1730153001531,10.9621299,177.95,177.94,0.1]
[1730153001728,10.9621299,177.95,177.94,0.2]
[1730153002227,10.9621299,177.95,177.94,0.1]
[1730153002425,16.5816299,177.95,177.94,0.1]
[1730153002643,60.3585139,177.95,177.94,0.1]
[1730153002819,40.3585139,177.95,177.94,0.2]
[1730153003023,29.396384,177.95,177.94,0.2]
[1730153003245,40.3585139,177.95,177.94,0.2]
[1730153004545,60.3585139,177.95,177.94,0.2]
[1730153005229,40.3585139,177.95,177.94,0.2]
[1730153005624,113.776884,177.94,177.89,0.2]
[1730153005845,23.776884,177.89,177.88,0.2]
[1730153006018,34.7390139,177.89,177.88,0.2]
[1730153006225,124.7390139,177.89,177.88,0.1]
[1730153006425,54.7390139,177.89,177.88,0.2]
[1730153006942,23.776884,177.89,177.88,0.2]
[1730153008253,23.776884,177.89,177.85,19.6794]
[1730153008254,25.6198,177.94,177.93,0.2]
[1730153009358,49.396684,177.94,177.93,0.1]
[1730153009654,49.396684,177.94,177.93,0.2]
[1730153009953,60.3588139,177.94,177.93,0.2]
[1730153010845,10.9621299,177.94,177.93,0.2]
[1730153012451,34.7390139,177.94,177.93,0.2]
[1730153013028,93.03087855,178.01,178.0,0.1]
[1730153013232,10.9621299,178.01,178.0,0.2]
[1730153013560,86.5797299,178.01,177.99,0.1]
[1730153013721,10.9621299,178.0,177.98,0.1]
[1730153013922,75.6176,178.01,178.0,0.1]
[1730153014143,86.5797299,178.01,178.0,0.1]
[1730153015154,106.5797299,178.01,178.0,0.1]
[1730153015359,70.0,178.04,178.02,0.1]
[1730153015553,16.5792299,178.03,178.02,0.1]
[1730153015937,16.5792299,178.03,178.02,0.2]
[1730153016439,16.5792299,178.03,178.02,0.1]
[1730153016641,16.5792299,178.03,178.01,0.1]
[1730153016858,144.8106495,178.02,177.99,0.1]
[1730153017031,89.6596,178.03,177.98,0.2]
[1730153017360,75.6171,178.03,178.02,0.1]
[1730153017551,99.393984,178.03,178.02,0.1]
[1730153017851,5.616,178.06,178.05,0.1]
[1730153018230,86.5781299,178.06,178.05,0.1]
[1730153018767,86.5781299,178.06,178.04,0.1]
[1730153018768,86.5781299,178.06,178.04,0.2]
[1730153018960,5.6163,178.05,178.04,0.2]
[1730153019326,16.5784299,178.05,178.04,0.2]
[1730153019960,5.6163,178.05,178.04,0.2]
[1730153020253,40.3553139,178.05,178.04,0.2]
[1730153020435,49.393184,178.05,178.04,0.2]
[1730153020754,60.3553139,178.05,178.04,0.2]
[1730153020957,60.3553139,178.05,178.03,0.2]
[1730153020958,43.776884,178.04,178.03,0.2]
[1730153021131,124.7390139,178.04,178.02,0.2]
[1730153021335,54.7390139,178.03,178.02,0.2]
[1730153022055,90.0,178.02,178.01,0.1]
[1730153022245,113.776884,178.02,178.0,0.2]
[1730153022438,43.776884,177.99,177.98,0.1]
[1730153022853,54.7390139,177.99,177.98,0.1]
[1730153023054,60.3572139,177.99,177.98,0.1]
[1730153023635,23.776884,177.98,177.95,0.2]
[1730153023837,43.776884,177.95,177.94,0.2]
[1730153024040,43.776884,177.95,177.94,0.1]
[1730153024041,54.7390139,177.95,177.94,0.1]
[1730153024241,54.7390139,177.95,177.94,0.2]
[1730153024434,60.86186428,177.95,177.94,0.2]
[1730153024635,60.86186428,177.95,177.94,0.1]
[1730153024857,60.86186428,177.95,177.94,0.2]